Cogmind - Beta 15 *** ADVENTURER MODE // 2025.09.02 @ 16:28:21 Player: Knightshade Result: Destroyed by HN-ICJ(R) with Subdweller Laser Performance ------------- Evolutions (0) 0 Regions Visited (2) 400 Robots Destroyed (41) 205 Value Destroyed (1027) 1027 Prototype IDs (5) 100 Alien Tech Used (0) 0 Bonus (0) 0 TOTAL SCORE: 1732 Bonus ------- None Cogmind --------- Core Integrity 0/250 Matter 228/300 Energy 160/160 System Corruption 0% Temperature Cool (6) Movement Rolling (140) Ox4 Location -10/Subcaves Parts ------- > --- POWER (1) -------- Light Nuclear Core > --- PROPULSION (2) --- Wheel Wheel > --- UTILITY (2) ------ Huge Storage Unit Core Shielding > --- WEAPON (2) ------- Subdweller Machine Gun Subdweller Machine Gun > --- INVENTORY (25) --- Light Nuclear Core Aluminum Leg Aluminum Leg Subdweller Monowheel Small Storage Unit Humpback Large Matter Pod (150) Large Matter Pod (150) Seismic Detector Makeshift Hacking Suite EM Pulse Gun EM Pulse Gun EM Pulse Gun Medium Laser Particle Gun Subdweller Laser Subdweller Laser Subdweller Beam Cannon Assault Rifle Subdweller Machine Gun Barrage Gun Grenade Launcher Makeshift Spear Peak State ------------ > --- POWER ------------ Light Nuclear Core > --- PROPULSION ------- Aluminum Leg Wheel > --- UTILITY ---------- Huge Storage Unit Core Shielding > --- WEAPON ----------- Subdweller Machine Gun Subdweller Machine Gun > --- INVENTORY -------- Subdweller Power Source Light Nuclear Core Aluminum Leg Wheel Subdweller Monowheel Small Storage Unit Humpback Large Matter Pod Large Matter Pod Seismic Detector Makeshift Hacking Suite EM Pulse Gun EM Pulse Gun EM Pulse Gun Medium Laser Particle Gun Subdweller Laser Subdweller Laser Subdweller Beam Cannon Assault Rifle Subdweller Machine Gun Barrage Gun Grenade Launcher Makeshift Spear [Rating: 15] Favorites ----------- Power Ion Engine Engine Ion Engine Power Core Light Nuclear Core Propulsion Wheel Treads Light Treads Leg Aluminum Leg Wheel Wheel Utility Huge Storage Unit Device Seismic Detector Storage Huge Storage Unit Protection Core Shielding Weapon Beam Cannon Energy Gun EM Pulse Gun Energy Cannon Beam Cannon Ballistic Gun Subdweller Machine Gun Launcher Grenade Launcher Special Weapon Flamer Build | -11 -10 -10 ------- Run | Yrd Mat Sub Slots Evolved . | . . . Power . | . . . Propulsion . | . . . Utility . | . . . Weapon . | . . . Parts Attached 33 | 9 9 15 Power 5 | 1 1 3 Engine 4 | 1 1 2 Core 1 | . . 1 Reactor . | . . . Propulsion 9 | 4 2 3 Treads 2 | 2 . . Leg 2 | 2 . . Wheel 5 | . 2 3 Hover . | . . . Flight . | . . . Utility 4 | 2 2 . Device 1 | 1 . . Storage 2 | 1 1 . Processor . | . . . Hackware . | . . . Protection 1 | . 1 . Artifact . | . . . Weapon 15 | 2 4 9 Energy Gun 4 | . 1 3 Energy Cannon 2 | . 2 . Ballistic Gun 6 | 2 . 4 Ballistic Cannon . | . . . Launcher 1 | . 1 . Special Weapon 2 | . . 2 Impact Weapon . | . . . Slashing Weapon . | . . . Piercing Weapon . | . . . Special Melee Weapon . | . . . Unidentified Prototypes . | . . . Parts Lost 8 | . 2 6 Power 3 | . 1 2 Propulsion 2 | . . 2 Utility . | . . . Weapon 3 | . 1 2 Highest Loss Streak 2 | . 1 2 To Critical Strikes . | . . . Average Backups 18 | 2 11 21 Power 2 | . 1 2 Propulsion 1 | . 1 1 Utility 4 | . 2 5 Weapon 10 | . 5 12 Tool/Special . | . . . Unused Backups 15 | . . 15 Power 2 | . . 2 Propulsion 1 | . . 1 Utility 4 | . . 4 Weapon 8 | . . 8 Tool/Special . | . . . Average Slot Usage (%) 98 | . 97 99 Engine 12 | . 13 11 Core 1 | . . 2 Leg 8 | . 3 9 Wheel 19 | . 21 18 Device 3 | . 13 . Storage 14 | . 14 14 Protection 10 | . . 14 Energy Gun 6 | . 1 8 Energy Cannon 10 | . 18 7 Ballistic Gun 10 | . 8 10 Peak Build Rating 15 | 7 9 15 Average Rating 10 | 5 7 12 On Entrance 5 | . 7 9 Naked Turns . | . . . Heaviest Build 94 | 14 92 94 Greatest Support 40 | 40 26 26 Greatest Overweight (x) 9 | 1 5 9 Average Overweight (x) 5 | . 2 6 Largest Inventory Capacity 25 | 8 25 25 Average Capacity 24 | 7 22 25 Most Carried 25 | 4 17 25 Average Carried 19 | 2 11 22 Final Capacity 25 | 8 25 25 Final Carried 24 | 3 17 24 Class Distribution -------------------- 100% | Mutant Dominant Class ---------------- Mutant | -10/Materials Mutant | -10/Subcaves Resources | -11 -10 -10 ----------- Run | Yrd Mat Sub Matter Collected 1187 | 243 574 370 Remotely . | . . . Salvage Created 1393 | 27 832 534 Parts 84 | 2 49 33 Haulers Intercepted 2 | . 2 . Recyclers Shooed . | . . . Parts Field Recycled . | . . . Retrieved Matter . | . . . Parts Self-Destructed 13 | . . 13 Prevented . | . . . Kills | -11 -10 -10 ------- Run | Yrd Mat Sub Combat Hostiles Destroyed 30 | . 17 13 Guns 14 | . 10 4 Cannons 11 | . 4 7 AOE 4 | . 3 1 Classes Destroyed 11 | 1 6 4 Worker 2 | . 2 . Tunneler 1 | 1 . . Hauler 2 | . 2 . Recycler 1 | . 1 . Turret 2 | . . 2 Watcher 3 | . 3 . Swarmer 9 | . 6 3 Grunt 11 | . 11 . Artisan 1 | . . 1 Cobbler 2 | . . 2 Subdweller 10 | . . 10 Best Kill Streak 8 | 1 8 4 Combat Bots Only 7 | . 7 4 Max Kills in Single Turn 2 | 1 2 2 Gunslinging . | . . . Exploded 2 | . 2 1 Melee . | . . . Uniques/NPCs Destroyed . | . . . Combat | -11 -10 -10 -------- Run | Yrd Mat Sub Hostile Shots Fired 200 | . 76 124 Missed 58 | . 16 42 Hits 142 | . 60 82 Projectile 142 | . 60 82 Actively Blocked 1 | . . 1 Damage Taken 1314 | . 495 819 Core 250 | . 111 139 Absorbed by Shields . | . . . Redirected to Shielding 29 | . . 29 Ignored by Resistances 376 | . 157 219 Core Remaining (%) 100 | 100 . . Volleys Fired 135 | 4 55 76 Largest 2 | 2 2 2 Hottest 180 | 40 120 180 Shots Fired 250 | 8 108 134 Gun 146 | 8 86 52 Cannon 80 | . 20 60 Launcher 11 | . 2 9 Special 13 | . . 13 Kinetic 136 | 8 86 42 Thermal 97 | . 20 77 Explosive 11 | . 2 9 Electromagnetic 6 | . . 6 Robot Hit Streak 31 | 4 24 31 Robot Miss Streak 2 | 1 2 1 Penetration Max . | . . . Secondary Targets 2 | . 2 . Max Gunslinging Chain 1 | . 1 . Shots Hit Robots 170 | 7 82 81 Core Hits 82 | 3 41 38 Critical Kills 1 | . 1 . Critical Parts Destroyed 1 | . 1 . Critical Strikes 3 | . 2 1 Burn 1 | . . 1 Destroy 2 | . 2 . Melee Attacks . | . . . Impact . | . . . Slashing . | . . . Piercing . | . . . Sneak Attacks . | . . . Combat Hostiles . | . . . Follow-up Attacks . | . . . Damage Inflicted 2868 | 70 1073 1725 Guns 1514 | 70 686 758 Cannons 845 | . 281 564 Explosions 389 | . 106 283 Melee . | . . . Ramming . | . . . Kinetic 1406 | 70 686 650 Thermal 1053 | . 281 772 Explosive 341 | . 106 235 Electromagnetic 68 | . . 68 Impact . | . . . Slashing . | . . . Piercing . | . . . Highest Corruption . | . . . Average Corruption . | . . . Corruption Purged . | . . . Corruption Blocked . | . . . Overload Shots . | . . . Overflow Damage 1 | . . 1 Projectiles . | . . . Explosions 1 | . . 1 Melee . | . . . Knockbacks . | . . . Impact . | . . . Kinetic . | . . . Secondary . | . . . Self-Inflicted Damage . | . . . Shots . | . . . Rammed . | . . . Targets Rammed . | . . . Kicked . | . . . Crushed . | . . . Highest Temperature 299 | . 299 44 Average Temperature 68 | . 80 21 Received Heat Transfer 462 | . 288 174 Siege Activations . | . . . Martial Activations . | . . . Shielding Activations . | . . . Robots Disrupted . | . . . Combat Hostiles . | . . . Robots Corrupted . | . . . Combat Hostiles . | . . . Parts Fried . | . . . Impact Corruptions . | . . . Robots Melted 1 | . . 1 Combat Hostiles 1 | . . 1 Parts Melted 2 | . 1 1 Heat Transferred 2916 | . 592 2324 Parts Sabotaged . | . . . Parts Stolen . | . . . Parts Stripped . | . . . Power Chain Reactions 1 | . . 1 Alert | -11 -10 -10 ------- Run | Yrd Mat Sub Maximum Alert Level 1 | . 1 . Low Security (%) 75 | 100 73 . Level 1 24 | . 26 . Level 2 . | . . . Level 3 . | . . . Level 4 . | . . . Level 5 . | . . . High Security . | . . . Max Security . | . . . Peak Influence 284 | 5 284 . Initial . | . . . Average 91 | . 96 . Influence Increases 949 | 5 574 370 Destroy 0b10 Robot/C 440 | . 340 100 Destroy 0b10 Robot/NC 45 | 5 40 . Destroy Leader 70 | . 70 . Successful Hack 19 | . 19 . Disable Machine 9 | . 9 . Destroy Structure 6 | . 6 . Lose Combat Pursuer 360 | . 90 270 Influence Decreases 794 | 5 574 215 Time Decay 764 | 5 554 205 Lost Part 30 | . 20 10 Squads Dispatched 3 | . 3 . Investigation 3 | . 3 . Extermination . | . . . Reinforcement . | . . . Assault . | . . . Garrison . | . . . Intercept . | . . . Searches Triggered . | . . . Construction Impeded . | . . . Haulers Reinforced . | . . . Active Scanning Responses . | . . . Cargo Convoy Interrupts . | . . . Stealth | -11 -10 -10 --------- Run | Yrd Mat Sub Distress Signals 2 | . 2 . Communications Jammed . | . . . Distress Signals . | . . . Times Spotted 49 | . 28 21 Peak Tracking Total 8 | . 8 6 Tactical Retreats 10 | . 6 4 Traps | -11 -10 -10 ------- Run | Yrd Mat Sub Traps Triggered 5 | . 3 2 Indirectly . | . . . Trap Hack Attempts . | . . . Triggered . | . . . Disarmed . | . . . Reprogrammed . | . . . Reused . | . . . Traps Extracted . | . . . Installed . | . . . Triggered . | . . . Machines | -11 -10 -10 ---------- Run | Yrd Mat Sub Machines Disabled 4 | . 1 3 Max in Single Turn 3 | . 1 3 Machines Repaired . | . . . Machines Dismantled . | . . . Machines Sabotaged . | . . . Overloaded Fab Kills . | . . . Hacking | -11 -10 -10 --------- Run | Yrd Mat Sub Machines Accessed 8 | . 7 1 Terminals 7 | . 7 . Fabricators . | . . . Repair Stations . | . . . Recycling Units . | . . . Scanalyzers . | . . . Garrison Access . | . . . Total Hacks 30 | . 26 4 Successful 21 | . 17 4 Failed 9 | . 9 . Catastrophic . | . . . Database Lockouts . | . . . Manual 22 | . 22 . Terminals 26 | . 26 . Fabricators . | . . . Repair Stations . | . . . Recycling Units . | . . . Scanalyzers . | . . . Garrison Access . | . . . Terminal Hacks 12 | . 8 4 Record 4 | . . 4 Robot Analysis 1 | . 1 . Prototype ID Bank 3 | . 3 . Terminal Index 1 | . 1 . Locate Traps 1 | . 1 . Registered Components 1 | . 1 . Registered Prototypes 1 | . 1 . Fabricator Hacks . | . . . Repair Station Hacks . | . . . Recycling Unit Hacks . | . . . Scanalyzer . | . . . Garrison Access Hacks . | . . . Unauthorized Hacks 9 | . 9 . Terminals 9 | . 9 . Botnet 4 | . 4 . Skim 5 | . 5 . Fabricators . | . . . Repair Stations . | . . . Recycling Units . | . . . Scanalyzers . | . . . Garrison Access . | . . . Data Cores Recovered . | . . . Used . | . . . Hacking Detections 6 | . 6 . Full Trace Events . | . . . Feedback Events . | . . . Feedback Blocked . | . . . Robot Schematics Acquired . | . . . Robots Built . | . . . Authchips . | . . . Time . | . . . Total Robot Build Rating . | . . . Part Schematics Acquired . | . . . Parts Built . | . . . Authchips . | . . . Time . | . . . Total Part Build Rating . | . . . Parts Repaired . | . . . Time . | . . . Parts Recycled . | . . . Recycled Matter . | . . . Retrieved Matter . | . . . Retrieved Components . | . . . Parts Scanalyzed . | . . . Part Schematics Acquired . | . . . Parts Damaged . | . . . Bothacking | -11 -10 -10 ------------ Run | Yrd Mat Sub Used RIF Installer . | . . . Robots Hacked . | . . . Non-combat . | . . . Combat . | . . . Robot Hacks Applied . | . . . Relay Couplers Released . | . . . Fabnet Peak Effective % . | . . . Robots Rewired . | . . . Allies Hacked . | . . . Hacks Repelled . | . . . Allies | -11 -10 -10 -------- Run | Yrd Mat Sub Total Allies . | . . . Largest Group . | . . . Highest-Rated Group . | . . . Highest-Rated Ally . | . . . Total Orders . | . . . Ally Attacks . | . . . Total Damage . | . . . Kills . | . . . Allies Corrupted . | . . . Allies Melted . | . . . Intel | -11 -10 -10 ------- Run | Yrd Mat Sub Active Infowar (turns) 1517 | 26 1491 . Seismic 1517 | 26 1491 . Robot Analysis Total 1 | . 1 . Derelict Logs Recovered 1 | . . 1 Drone Launches . | . . . Drone Recoveries . | . . . Exploration | -11 -10 -10 ------------- Run | Yrd Mat Sub Turns Passed 5502 | 95 1499 3908 Spaces Moved 2855 | 52 796 2007 Core 1 | 1 . . Treads 12 | 12 . . Legs 163 | 39 124 . Wheels 2679 | . 672 2007 Hover . | . . . Flight . | . . . Fastest Speed 50 | 50 120 135 Average Speed 166 | 129 136 179 Slowest Speed 215 | 190 175 215 Overloaded Moves . | . . . Propulsion Burnouts . | . . . Robots Hopped . | . . . Potential Cave-ins . | . . . Cave-ins Triggered . | . . . Exploration Rate (%) 60 | 4 97 79 Regions Visited 2 Branch Regions 1 Pre-discovered Areas . | . . . Known Exits Taken 1 | . 1 . Unknown Exits Taken 1 | 1 . . Scrap Searched 10 | . . 10 Spaces Dug . | . . . Terrain Destroyed 24 | . 10 14 Melee . | . . . Projectile . | . . . AOE 24 | . 10 14 Terrain Rammed . | . . . Walls Destroyed . | . . . Machines Disabled . | . . . Actions | -11 -10 -10 --------- Run | Yrd Mat Sub Total 3339 | 68 1106 2165 Wait 266 | . 230 36 Move 2853 | 51 795 2007 Hop . | . . . Pick Up 35 | 4 13 18 Fast Attach 9 | 6 2 1 Attach 9 | 1 2 6 Detach 2 | . 2 . Swap 22 | 2 7 13 Drop 8 | . . 8 Fire 135 | 4 55 76 Melee . | . . . Ram . | . . . Kick . | . . . Crush . | . . . Escape Stasis . | . . . Rewire . | . . . Trap . | . . . Miscellaneous . | . . . Route ------- -11/Scrapyard -10/Materials (discovered 5 exits: *Mat x3 / [*Min] / *Sub) -10/Subcaves (discovered 3 exits: *Mat x2 / *Rec) History --------- Turn | Location | Event 22 | -11/Scrapyard | Discovered new exit (range 16) 96 | -11/Scrapyard | Entered Materials 143 | -10/Materials | Discovered new exit (range 14) 315 | -10/Materials | Build established: Mutant 476 | -10/Materials | Destroyed 7 combat bots 534 | -10/Materials | Discovered new exit (range 4) 869 | -10/Materials | Discovered new exit (range 15) 1095 | -10/Materials | Discovered new exit (range 7) 1143 | -10/Materials | Learned location of 2 exits from Subcaves 1195 | -10/Materials | Learned location of 2 exits from Subcaves 1238 | -10/Materials | Learned 2 Mines zone layouts 1272 | -10/Materials | Identified exit to Subcaves 1321 | -10/Materials | Identified exit to Materials 1398 | -10/Materials | Learned location of 2 exits from Materials 1595 | -10/Materials | Entered Subcaves 1596 | -10/Subcaves | Identified exit to Materials 1597 | -10/Subcaves | Identified exit to Recycling 1842 | -10/Subcaves | Shifting Twisted Machinery released Humpback 1843 | -10/Subcaves | Shifting Twisted Machinery released Lgt. Humpback 2308 | -10/Subcaves | Core integrity fell below 50% 2756 | -10/Subcaves | Learned Materials trap positions 3063 | -10/Subcaves | Visited Clippyterm 3070 | -10/Subcaves | Learned Research machine intel 3835 | -10/Subcaves | Core integrity fell below 20% 4267 | -10/Subcaves | Shifting Twisted Machinery released Sub. Monowheel 4269 | -10/Subcaves | Shifting Twisted Machinery released Mak. Hacking Suite 4374 | -10/Subcaves | Ambushed by angry Subdweller bent on revenge 5503 | -10/Subcaves | Destroyed by HN-ICJ(R) with Subdweller Laser Last Messages --------------- 04360_ Acquired 13 matter. 04364_ Acquired Wheel. 04374_ MM-RZP(R) angrily emerges from the Twisted Machinery. 04374_ MM-RZP(R): "SUBHATE!" 04417_ MM-RZP(R) destroyed. 04426_ Dropped Beam Cannon. 04426_ Acquired Sub. Beam Cannon. 04427_ Acquired 23 matter. 04608_ Acquired 12 matter. 04859_ Sub. Power Source shoots sparks and powers down. 04908_ Dropped Broken Sub. Power Source. 05005_ Acquired 10 matter. 05353_ Machine disabled. 05369_ Autobeam Turret destroyed. 05373_ Acquired 25 matter. 05374_ The unstable cave ceiling collapses. 05375_ Acquired 17 matter. 05378_ The unstable cave ceiling collapses. 05379_ Acquired 21 matter. 05386_ Acquired 5 matter. Map ----- +----------------------------------------------------+ | ####???????##########????????????????????????????? | | ????###????# #????????????????????????????? | | ##### ###### #????????????????????????????? | | # ## #????????????????????????????? | | ##???????????????????????????? | | # ### #???????????????????????????? | | # ############?#####???????????????????????????? | | # #????????????????????????????????????????????? | | ##????????????????????????????????????????????? | | #?????????????????????????????????????????????? | | #?????????????????????????????????????????????? | | ####?????????????????????????????????????????????? | | ?????????????????????????????????????????????????? | | ?????????????????????????????????????????????????? | | ?????????????????????????????????????????????????? | | ?????????????????????????????????????????????????? | | ###??????????????????????????????????????????????? | | ""##?????????????????????????????????????????????? | | ""##????????????????????????????????????????????? | | #????????????????????????????????????????????? | | # ##??????????????????####?????????????????????? | | # ##????????????????## #?????????????????????? | | ## "#????????????????# ##????????????????????? | | ## #??????????????### ##???????????????????? | | # #????????????### #???????????????????? | | # ##????????????#$#" #@ #???????????????????? | | #####?###?????????? ##R #???????????????????? | | #?#####>#####???? "##" ## #???????????????????? | | ###"""" """"#??? ## ## #???????????????????? | | ##" #????## ##???????????????????? | | ##" #????# #????????????????????? | | ## ####?# #????????????????????? | | ## ## #?## ## #???????????????????? | | ##" # ##### ### ##???????????????????? | | ##??# ## # ### # #????????????????????? | | ##??# # ## #????????????????????? | | ##### # ### ????????????????????? | | ###& ## ##???????????????????? | | ## * ### #???????????????????? | | ####| ##?# ###### #???????????????????? | | ### ##??# #????## ### #???????????????????? | | ### ##???# #?????###?# #???????????????????? | | ##????## #?????????# #???????????????????? | | ##??????## ?????????? #???????????????????? | | #????????? ?????????? ##???????????????????? | | ##???????? ?????????? ?????????????????????? | | ##??????? ????????????????????????????????? | | ######?? ????????????????????????????????? | | ## ##? ????????????????????????????????? | | #### #?# ????????????????????????????????? | +----------------------------------------------------+ Best States ------------- Heat Dissipation 25 Energy Generation 15 Energy Capacity 250 Matter Stores 300 Matter Capacity 300 Sight Range 16 Terrain Scan Density 10 Resistance: KI 20 Resistance: TH 20 Resistance: EX 20 Resistance: EM 20 Resistance: I 20 Resistance: S 20 Resistance: P 20 Core Shielding 20 Evasion (%) 55 Recoil Reduction 2 Offensive Hacking 10 Item Schematics ----------------- None Robot Schematics ------------------ None Fabricated ------------ Nothing Repaired ---------- Nothing Alien Tech Used ----------------- None Achievements -------------- None Challenges ------------ None Game ------ Seed AlertWeaponParser Manual? 0 Play Time 00:24:19 Cumulative 118.6 hours Start 2025.09.02 @ 15:00:59 End 2025.09.02 @ 16:28:21 Sessions 1 Manual Loads 0 Difficulty Adventurer Special Mode None Game No. 84 Rogue 0 Adventurer 84 Explorer 0 Win Type - Total 0 Types 0/0/0/0/0/0/0/0/0/0 Lore% 27 Gallery% 44 Achievement% 38 Wizard Run 0 Options --------- Layout 0 ASCII 0 Keyboard 0 Movement Mouse Keybinds 0 Fullscreen 1 Font 18/SmallcapsGlow Map View 76x50 Zoom Use 0% Tactical HUD 1 Map Filters NONE Filters NONE Steam 1 RUN: 1926873a-991f-4120-a4eb-a8de9995f913